fUST/lending_fUST_20251222
["ID","MTS","AMOUNT","RATE_DAILY","PERIOD"]
[399433364,1766347832309,-500.0,8.053e-05,2]
[399433365,1766347832318,-500.0,8.053e-05,2]
[399433366,1766347832327,-343.59042432,8.053e-05,2]
[399433367,1766347832337,-500.0,8.053e-05,2]
[399433368,1766347832346,-500.0,8.053e-05,2]
[399433369,1766347832356,-500.0,8.053e-05,2]
[399433371,1766347832365,-500.0,8.053e-05,2]
[399433373,1766347832375,-500.0,8.053e-05,2]
[399433375,1766347832384,-500.0,8.053e-05,2]
[399433377,1766347832394,-1200.0,8.053e-05,2]
[399433379,1766347832404,-254591.8880664,8.057e-05,2]
[399433382,1766347832424,-8136.44149625,8.057e-05,2]
[399433384,1766347832436,-1423.00869472,8.057e-05,2]
[399433737,1766347838142,-2379.5341711,8.057e-05,2]
[399433744,1766347838198,-4247.00643768,8.057e-05,2]
[399433746,1766347838209,-776.68808795,8.057e-05,2]
[399433751,1766347838252,-19037.16580179,8.057e-05,2]
[399433753,1766347838265,-5502.1121329,8.057e-05,2]
[399433759,1766347840288,-27471.32586752,8.057e-05,2]
[399433760,1766347840378,-3e-08,8.057e-05,2]
[399433761,1766347840389,-479.93791128,8.057e-05,2]
[399434083,1766347843654,-4229.09674688,8.057e-05,2]
[399434169,1766347844470,810.33,7.771e-05,2]
[399434221,1766347852165,5000.0,7.935e-05,2]
[399434223,1766347876104,5000.0,7.935e-05,2]
[399434224,1766347899899,0.01,7.935e-05,2]
[399434225,1766347899922,4999.99,7.935e-05,2]
[399434226,1766347922812,5000.0,7.935e-05,2]
[399434227,1766347926908,0.02,7.758e-05,2]
[399434228,1766347926931,800.0,7.758e-05,2]
[399434229,1766347942923,-408.78420146,8.052e-05,2]
[399434230,1766347942958,-427.0656027,8.052e-05,2]
[399434231,1766347942987,-500.0,8.052e-05,2]
[399434232,1766347943015,-500.0,8.052e-05,2]
[399434233,1766347943043,-319.3071738,8.052e-05,2]
[399434234,1766347943071,-500.0,8.052e-05,2]
[399434235,1766347943099,-500.0,8.052e-05,2]
[399434236,1766347943128,-500.0,8.052e-05,2]
[399434237,1766347943155,-500.0,8.052e-05,2]
[399434238,1766347943184,-500.0,8.052e-05,2]
[399434239,1766347943212,-189.69604408,8.052e-05,2]
[399434240,1766347945581,5000.0,7.935e-05,2]
[399434241,1766347946541,-310.30395592,8.052e-05,2]
[399434242,1766347946569,-500.0,8.052e-05,2]
[399434243,1766347946597,-500.0,8.052e-05,2]
[399434244,1766347946624,-500.0,8.052e-05,2]
[399434245,1766347946652,-500.0,8.052e-05,2]
[399434246,1766347946680,-500.0,8.052e-05,2]
[399434247,1766347946708,-500.0,8.052e-05,2]
[399434248,1766347946737,-500.0,8.052e-05,2]
[399434249,1766347946765,-500.0,8.052e-05,2]
[399434250,1766347946792,-500.0,8.052e-05,2]
[399434251,1766347954921,-500.0,8.052e-05,2]
[399434252,1766347954950,-500.0,8.052e-05,2]
[399434253,1766347954981,-500.0,8.052e-05,2]
[399434254,1766347955010,-500.0,8.052e-05,2]
[399434255,1766347955040,-500.0,8.052e-05,2]
[399434256,1766347955352,-500.0,8.052e-05,2]
[399434257,1766347955382,-500.0,8.052e-05,2]
[399434258,1766347955413,-500.0,8.052e-05,2]
[399434259,1766347955441,-500.0,8.052e-05,2]
[399434260,1766347955470,-500.0,8.052e-05,2]
[399434261,1766347955639,-500.0,8.052e-05,2]
[399434262,1766347955668,-500.0,8.052e-05,2]
[399434263,1766347955698,-463.72622135,8.052e-05,2]
[399434264,1766347955726,-500.0,8.052e-05,2]
[399434265,1766347955755,-500.0,8.052e-05,2]
[399434266,1766347955784,-500.0,8.052e-05,2]
[399434267,1766347955820,-500.0,8.052e-05,2]
[399434268,1766347955849,-500.0,8.052e-05,2]
[399434269,1766347955878,-500.0,8.052e-05,2]
[399434270,1766347955909,-500.0,8.052e-05,2]
[399434271,1766347955999,-500.0,8.052e-05,2]
[399434272,1766347956028,-500.0,8.052e-05,2]
[399434273,1766347956058,-500.0,8.052e-05,2]
[399434274,1766347956087,-450.00000001,8.052e-05,2]
[399434275,1766347956116,-500.0,8.052e-05,2]
[399434276,1766347956145,-500.0,8.052e-05,2]
[399434277,1766347956174,-500.0,8.052e-05,2]
[399434278,1766347956202,-500.0,8.052e-05,2]
[399434279,1766347968444,2100.00999998,8.052e-05,2]
[399434280,1766347968466,2796.97090142,8.052e-05,2]
[399434281,1766347972199,500.0,8.051e-05,2]
[399434282,1766347972246,191.37262213,8.051e-05,2]
[399434283,1766347972294,500.0,8.051e-05,2]
[399434284,1766347972356,500.0,8.051e-05,2]
[399434285,1766347972393,500.0,8.051e-05,2]
[399434286,1766347972449,500.0,8.051e-05,2]
[399434287,1766347982581,500.0,8.051e-05,2]
[399434288,1766347983982,368.13813171,8.051e-05,2]
[399434289,1766347984227,886.46216338,8.054e-05,2]
[399434290,1766347984301,203.9783034,8.051e-05,2]
[399434291,1766347984848,500.0,8.051e-05,2]
[399434292,1766347984897,500.0,8.051e-05,2]
[399434293,1766347992419,2340.14852851,8.054e-05,2]
[399434294,1766348001921,950.66372839,7.965e-05,2]
[399434295,1766348006896,340.30464576,8.051e-05,2]
[399434296,1766348006930,500.0,8.051e-05,2]
[399434297,1766348006963,500.0,8.051e-05,2]
[399434298,1766348007002,500.0,8.051e-05,2]
[399434299,1766348007041,500.0,8.051e-05,2]
[399434300,1766348007081,500.0,8.051e-05,2]
[399434301,1766348007120,500.0,8.051e-05,2]
[399434302,1766348007165,410.31449885,8.051e-05,2]
[399434303,1766348007193,89.68550115,8.051e-05,2]
[399434304,1766348008272,370.0,8.051e-05,2]
[399434305,1766348008314,800.62,7.761e-05,2]
[399434306,1766348013348,-286.77014095,8.054e-05,2]
[399434307,1766348013369,-45.98125366,8.056e-05,2]
[399434308,1766348015488,-254.01874634,8.056e-05,2]
[399434309,1766348015516,-63.54484641,8.057e-05,2]
[399434310,1766348019240,-238.55678043,8.057e-05,2]
[399434311,1766348020407,-242.82769462,8.057e-05,2]
[399434312,1766348022442,-471.05942776,8.057e-05,2]
[399434313,1766348024530,-217.41638008,8.057e-05,2]
[399434314,1766348026267,-366.89231098,8.057e-05,2]
[399434315,1766348028900,-203.13865491,8.057e-05,2]
[399434316,1766348031153,-388.96156209,8.057e-05,2]
[399434317,1766348032800,-370.08682874,8.057e-05,2]
[399434318,1766348034357,-228.77305958,8.057e-05,2]
[399434319,1766348034408,-7020.37539205,8.057e-05,2]
[399434320,1766348034554,-10000.01,8.057e-05,2]
[399434321,1766348036375,-184.68304335,8.057e-05,2]
[399434322,1766348038566,-500.01497511,8.057e-05,2]
[399434323,1766348041224,-171.9819346,7.192e-05,2]
[399434324,1766348041250,-92.8906859,8.057e-05,2]
[399434325,1766348044454,-235.1273795,7.465e-05,2]
[399434326,1766348047974,-74.44010278,7.465e-05,2]
[399434327,1766348047996,-192.70074819,8.056e-05,2]
[399434328,1766348051462,-107.29925181,8.056e-05,2]
[399434329,1766348051488,-103.72890711,8.057e-05,2]
[399434330,1766348052991,-181.59919124,8.057e-05,2]
[399434331,1766348055122,-948.68177953,8.057e-05,2]
[399434332,1766348055502,-10000.01,8.057e-05,2]
[399434333,1766348055692,-10000.01,8.057e-05,2]
[399434334,1766348055858,-10000.01,8.057e-05,2]
[399434335,1766348056068,-10000.01,8.057e-05,2]
[399434336,1766348056242,-10000.01,8.057e-05,2]
[399434337,1766348056402,-10000.01,8.057e-05,2]
[399434338,1766348056540,-10000.01,8.057e-05,2]
[399434339,1766348056782,-10000.01,8.057e-05,2]
[399434340,1766348059020,-170.8652486,8.057e-05,2]
[399434341,1766348061975,-240.03317121,8.057e-05,2]
[399434342,1766348102749,-748.82035626,7.763e-05,2]
[399434343,1766348105398,-49.01964374,7.763e-05,2]
[399434344,1766348115902,274.91045136,7.686e-05,2]
[399434345,1766348131437,345.28565489,7.808e-05,2]
[399434346,1766348143653,-500.0,8.054e-05,2]
[399434347,1766348143683,-574.12855637,8.054e-05,2]
[399434348,1766348143712,-500.0,8.054e-05,2]
[399434349,1766348143743,-500.0,8.054e-05,2]
[399434350,1766348143771,-500.0,8.054e-05,2]
[399434351,1766348143800,-500.0,8.054e-05,2]
[399434352,1766348143829,-500.0,8.054e-05,2]
[399434353,1766348143861,-500.0,8.054e-05,2]
[399434354,1766348143890,-500.0,8.054e-05,2]
[399434355,1766348143920,-351.75288726,8.054e-05,2]
[399434356,1766348144123,-148.24711274,8.054e-05,2]
[399434357,1766348144153,-500.0,8.054e-05,2]
[399434358,1766348144184,-500.0,8.054e-05,2]
[399434359,1766348144216,-250.0,8.054e-05,2]
[399434360,1766348144555,-250.0,8.054e-05,2]
[399434361,1766348144584,-250.0,8.054e-05,2]
[399434362,1766348144614,-250.0,8.054e-05,2]
[399434363,1766348144642,-250.0,8.054e-05,2]
[399434364,1766348144671,-250.0,8.054e-05,2]
[399434365,1766348144699,-250.0,8.054e-05,2]
[399434366,1766348144728,-250.0,8.054e-05,2]
[399434367,1766348144758,-250.0,8.054e-05,2]
[399434368,1766348144787,-250.0,8.054e-05,2]
[399434369,1766348144817,-250.0,8.054e-05,2]
[399434370,1766348144848,-250.0,8.054e-05,2]
[399434371,1766348144888,-250.0,8.054e-05,2]
[399434372,1766348144924,-250.0,8.054e-05,2]
[399434373,1766348144956,-250.0,8.054e-05,2]
[399434374,1766348164770,-1200.0,8.056e-05,2]
[399434375,1766348164801,-300.0,8.056e-05,2]
[399434376,1766348170100,787.68,7.762e-05,2]
[399434377,1766348185812,-1505.84617599,8.057e-05,2]
[399434378,1766348185841,-1431.27063361,8.057e-05,2]
[399434379,1766348206420,-8786.44855637,8.057e-05,2]
[399434380,1766348206682,-10000.01,8.057e-05,2]
[399434381,1766348206943,-10000.01,8.057e-05,2]
[399434382,1766348207347,-10000.01,8.057e-05,2]
[399434383,1766348214686,-10000.01,8.057e-05,2]
[399434384,1766348219635,-10000.01,8.057e-05,2]
[399434385,1766348219839,-10000.01,8.057e-05,2]
[399434386,1766348220050,-10000.01,8.057e-05,2]
[399434387,1766348220271,-10000.01,8.057e-05,2]
[399434388,1766348293323,-5000.0,7.685e-05,2]
[399434389,1766348313386,-335.2996606,7.686e-05,2]
[399434390,1766348314840,-581.63040029,7.686e-05,2]
[399434391,1766348314871,-789.19,7.763e-05,2]
[399434392,1766348330082,335.2996606,7.763e-05,2]
[399434393,1766348336553,-779.15,7.773e-05,2]
[399434394,1766348357874,-156.97011748,7.866e-05,2]
[399434395,1766348357897,-162.3996039,7.956e-05,2]
[399434396,1766348375723,-137.6003961,7.956e-05,2]
[399434397,1766348387765,-254.07482248,7.957e-05,2]
[399434398,1766348390223,-266.29517752,7.957e-05,2]
[399434399,1766348398722,-9664.7103394,7.957e-05,2]
[399434400,1766348398904,-10000.01,7.957e-05,2]
[399434401,1766348399103,-10000.01,7.957e-05,2]
[399434402,1766348399230,-10000.01,7.957e-05,2]
[399434403,1766348399371,-10000.01,7.957e-05,2]
[399434404,1766348399514,-10000.01,7.957e-05,2]
[399434405,1766348399661,-10000.01,7.957e-05,2]
[399434406,1766348399816,-10000.01,7.957e-05,2]
[399434407,1766348399927,-10000.01,7.957e-05,2]
[399434408,1766348400039,-10000.01,7.957e-05,2]
[399434409,1766348420698,-203.38769901,7.686e-05,2]
[399434410,1766348420727,-129.82926891,7.686e-05,2]
[399434411,1766348423397,-225.99801335,7.686e-05,2]
[399434412,1766348425542,-218.85660862,7.686e-05,2]
[399434413,1766348429596,-284.39050535,7.609e-05,2]
[399434414,1766348431670,-1137.81588629,7.609e-05,2]
[399434415,1766348434305,-182.25682745,7.609e-05,2]
[399434416,1766348438015,-613.72974229,7.609e-05,2]
[399434417,1766348440003,-2781.80703862,7.609e-05,2]
[399434418,1766348440035,-238.05335438,7.686e-05,2]
[399434419,1766348440065,-688.13853967,7.686e-05,2]
[399434420,1766348445531,-417.03923141,7.77e-05,2]
[399434421,1766348447340,171.467741,0.00030137,120]
[399434422,1766348456859,-358.81076859,7.77e-05,2]
[399434423,1766348457430,5000.0,7.686e-05,2]
[399434424,1766348477400,-300.0,7.956e-05,2]
[399434425,1766348477429,-1200.0,7.956e-05,2]
[399434426,1766348477459,-532.0,7.956e-05,2]
[399434427,1766348481098,5000.0,7.956e-05,2]
[399434428,1766348484540,500.0,7.955e-05,2]
[399434429,1766348484595,436.01,7.955e-05,2]
[399434430,1766348484619,63.99,7.955e-05,2]
[399434431,1766348484650,500.0,7.955e-05,2]
[399434432,1766348484703,500.0,7.955e-05,2]
[399434433,1766348484759,369.73278079,7.955e-05,2]
[399434434,1766348494652,765.98,7.778e-05,2]
[399434436,1766348499463,-6864.30721921,7.957e-05,2]
[399434437,1766348499488,-10000.01,7.957e-05,2]
[399434438,1766348499509,-10000.01,7.957e-05,2]
[399434439,1766348499535,-10000.01,7.957e-05,2]
[399434440,1766348499650,-10000.01,7.957e-05,2]
[399434441,1766348499745,-10000.01,7.957e-05,2]
[399434442,1766348499862,-10000.01,7.957e-05,2]
[399434443,1766348500048,-10000.01,7.957e-05,2]
[399434444,1766348540332,-176.897,7.798e-05,2]
[399434445,1766348541403,974.53479594,7.72e-05,2]
[399434446,1766348559012,-5000.0,7.877e-05,2]
[399434447,1766348571307,0.01,7.877e-05,2]
[399434448,1766348571331,4999.99,7.877e-05,2]
[399434449,1766348577063,756.23,7.778e-05,2]
[399434450,1766348582764,-295.76291719,7.916e-05,2]
[399434451,1766348582794,-300.0,7.954e-05,2]
[399434452,1766348586575,1200.0,7.954e-05,2]
[399434453,1766348595137,5000.0,7.954e-05,2]
[399434454,1766348603773,158.07464755,7.686e-05,2]
[399434455,1766348606425,631.66629162,7.686e-05,2]
[399434456,1766348608179,-500.0,7.954e-05,2]
[399434457,1766348608212,-500.0,7.954e-05,2]
[399434458,1766348608244,-500.0,7.954e-05,2]
[399434459,1766348608274,-500.0,7.954e-05,2]
[399434460,1766348608312,-500.0,7.954e-05,2]
[399434461,1766348608347,-500.0,7.954e-05,2]
[399434462,1766348608387,-500.0,7.954e-05,2]
[399434463,1766348608422,-390.31794126,7.954e-05,2]
[399434464,1766348608455,-500.0,7.954e-05,2]
[399434465,1766348608486,-500.0,7.954e-05,2]
[399434466,1766348608646,-500.0,7.954e-05,2]
[399434467,1766348608678,-500.0,7.954e-05,2]
[399434468,1766348608708,-500.0,7.954e-05,2]
[399434469,1766348608739,-500.0,7.954e-05,2]
[399434470,1766348608769,-500.0,7.954e-05,2]
[399434471,1766348608799,-500.0,7.954e-05,2]
[399434472,1766348609134,-569.5864636,7.954e-05,2]
[399434473,1766348609163,-500.0,7.954e-05,2]
[399434474,1766348609192,-500.0,7.954e-05,2]
[399434475,1766348609226,-360.8370728,7.954e-05,2]
[399434476,1766348609352,-139.1629272,7.954e-05,2]
[399434477,1766348609384,-500.0,7.954e-05,2]
[399434478,1766348609413,-500.0,7.954e-05,2]
[399434479,1766348609441,-500.0,7.954e-05,2]
[399434480,1766348609469,-500.0,7.954e-05,2]
[399434481,1766348609498,-500.0,7.954e-05,2]
[399434482,1766348609526,-500.0,7.954e-05,2]
[399434483,1766348609556,-500.0,7.954e-05,2]
[399434484,1766348609586,-500.0,7.954e-05,2]
[399434485,1766348609614,-500.0,7.954e-05,2]
[399434486,1766348609643,-221.6841456,7.954e-05,2]
[399434487,1766348609732,229.4619772,7.686e-05,2]
[399434488,1766348609793,-278.3158544,7.954e-05,2]
[399434489,1766348609821,-500.0,7.954e-05,2]
[399434490,1766348609859,-500.0,7.954e-05,2]
[399434491,1766348609890,-500.0,7.954e-05,2]
[399434492,1766348609922,-500.0,7.954e-05,2]
[399434493,1766348609950,-500.0,7.954e-05,2]
[399434494,1766348609978,-500.0,7.954e-05,2]
[399434495,1766348610011,-500.0,7.954e-05,2]
[399434496,1766348610040,-500.0,7.954e-05,2]
[399434497,1766348610070,-500.0,7.954e-05,2]
[399434498,1766348618549,443.3782912,7.955e-05,2]
[399434499,1766348618574,4556.6217088,7.955e-05,2]
[399434500,1766348633830,-500.0,7.956e-05,2]
[399434501,1766348633859,-500.0,7.956e-05,2]
[399434502,1766348633890,-500.0,7.956e-05,2]
[399434503,1766348633919,-631.21346829,7.956e-05,2]
[399434504,1766348642719,5000.0,7.956e-05,2]
[399434505,1766348656718,737.58306342,7.953e-05,2]
[399434506,1766348656742,28.09693658,7.953e-05,2]
[399434507,1766348658958,4164.71352429,7.956e-05,2]
[399434508,1766348659437,-300.0,7.956e-05,2]
[399434509,1766348659467,-300.0,7.956e-05,2]
[399434510,1766348667257,5000.0,7.956e-05,2]
[399434511,1766348684043,-6781.84148249,7.957e-05,2]
[399434512,1766348684171,-10000.01,7.957e-05,2]
[399434513,1766348684312,-10000.01,7.957e-05,2]
[399434514,1766348702715,-5000.0,7.874e-05,2]
[399434515,1766348711169,0.01,7.567e-05,2]
[399434529,1766348717795,-164.98032726,7.567e-05,2]
[399434530,1766348726120,-172.04003912,7.567e-05,2]
[399434532,1766348738398,775.83,7.819e-05,2]
[399434533,1766348759171,-5000.0,7.947e-05,2]
[399434534,1766348760808,0.01,7.947e-05,2]
[399434535,1766348760831,4999.99,7.947e-05,2]
[399434537,1766348784124,5000.0,7.947e-05,2]
[399434538,1766348800062,-500.0,7.952e-05,2]
[399434539,1766348800093,-500.0,7.952e-05,2]
[399434540,1766348800126,-500.0,7.952e-05,2]
[399434541,1766348800155,-500.0,7.952e-05,2]
[399434542,1766348800184,-500.0,7.952e-05,2]
[399434543,1766348800214,-500.0,7.952e-05,2]
[399434544,1766348800243,-500.0,7.952e-05,2]
[399434545,1766348800273,-574.12855637,7.952e-05,2]
[399434546,1766348800301,-500.0,7.952e-05,2]
[399434547,1766348800332,-351.75288726,7.952e-05,2]
[399434548,1766348800571,-148.24711274,7.952e-05,2]
[399434549,1766348800600,-500.0,7.952e-05,2]
[399434550,1766348800631,-500.0,7.952e-05,2]
[399434551,1766348807426,5000.0,7.952e-05,2]
[399434552,1766348820061,785.44,7.802e-05,2]
[399434553,1766348823433,300.0,7.952e-05,2]
[399434554,1766348831272,1618.07577452,7.952e-05,2]
[399434555,1766348831296,3381.92422548,7.952e-05,2]
[399434556,1766348847573,252.37896019,7.952e-05,2]
[399434557,1766348855313,5000.0,7.952e-05,2]
[399434558,1766348878893,1365.70681433,7.952e-05,2]
[399434559,1766348878918,3634.29318567,7.952e-05,2]
[399434560,1766348879699,6365.71681433,7.173e-05,2]
[399434561,1766348879721,6516.89618047,7.173e-05,2]
[399434562,1766348882260,300.0,7.952e-05,2]
[399434565,1766348901610,797.15,7.805e-05,2]
[399434566,1766348902323,2385.96381953,7.952e-05,2]
[399434567,1766348913153,174.39775889,7.78e-05,2]
[399434569,1766348915987,-2614.03618047,7.952e-05,2]
[399434570,1766348937748,-335.84913973,7.319e-05,2]
[399434571,1766348937778,-4328.31172054,7.873e-05,2]
[399434572,1766348937970,-671.68827946,7.873e-05,2]
[399434573,1766348938139,-5594.76293893,7.953e-05,2]
[399434574,1766348938318,-10000.01,7.953e-05,2]
[399434575,1766348938520,-10000.01,7.953e-05,2]
[399434576,1766348938717,-10000.01,7.953e-05,2]
[399434578,1766348979334,-5000.0,7.872e-05,2]
[399434579,1766348982732,0.01,7.8e-05,2]
[399434580,1766348982755,850.37,7.8e-05,2]
[399434581,1766348994212,5000.0,7.872e-05,2]
[399434582,1766349009247,642.41529113,7.742e-05,2]
[399434583,1766349017415,5000.0,7.942e-05,2]
[399434584,1766349020729,461.0969328,7.322e-05,2]
[399434670,1766349032645,-500.0,7.951e-05,2]
[399434672,1766349032655,-258.06920484,7.951e-05,2]
[399434674,1766349032664,-209.08999516,7.951e-05,2]
[399434677,1766349032675,-290.91000484,7.951e-05,2]
[399434679,1766349032684,-500.0,7.951e-05,2]
[399434681,1766349032694,-300.0,7.951e-05,2]
[399434683,1766349032703,-300.0,7.951e-05,2]
[399434685,1766349032712,-300.0,7.951e-05,2]
[399434687,1766349032721,-1200.0,7.951e-05,2]
[399434689,1766349032731,-532.0,7.951e-05,2]
[399434691,1766349032740,-500.0,7.952e-05,2]
[399434708,1766349032949,-422.8350126,7.952e-05,2]
[399434709,1766349033030,-500.0,7.952e-05,2]
[399434710,1766349033040,-500.0,7.952e-05,2]
[399434711,1766349033049,-500.0,7.952e-05,2]
[399434712,1766349033059,-500.0,7.952e-05,2]
[399434713,1766349033068,-500.0,7.952e-05,2]
[399434714,1766349033077,-500.0,7.952e-05,2]
[399434715,1766349033091,-500.0,7.952e-05,2]
[399434716,1766349033100,-500.0,7.952e-05,2]
[399434717,1766349033109,-500.0,7.952e-05,2]
[399434718,1766349033119,-574.12855637,7.952e-05,2]
[399434719,1766349033129,-546.06754988,7.952e-05,2]
[399434720,1766349033139,-14405.20706107,7.953e-05,2]
[399434721,1766349033148,-1698.43276243,7.953e-05,2]
[399434722,1766349033159,-289.84765884,7.953e-05,2]
[399434723,1766349033169,-5993.94310668,7.957e-05,2]
[399434724,1766349033204,-292.28939896,7.957e-05,2]
[399434728,1766349033560,167.4843,6.954e-05,2]
[399434739,1766349038511,-500.0,7.951e-05,2]
[399434740,1766349038520,-174812.40412875,7.957e-05,2]
[399434741,1766349038532,-6391.10637705,7.957e-05,2]
[399434742,1766349038546,-1813.69082781,7.957e-05,2]
[399434812,1766349040819,-3e-08,7.957e-05,2]
[399434817,1766349040856,3729.01347607,7.942e-05,2]
[399434820,1766349040879,1270.98652393,7.942e-05,2]
[399434982,1766349043330,-8227.64559349,7.957e-05,2]
[399434984,1766349043341,-119181.38013271,7.957e-05,2]
[399434994,1766349043443,-676.14128913,7.957e-05,2]
[399434996,1766349043454,-323.89483058,7.957e-05,2]
[399435022,1766349069795,-5000.0,7.798e-05,2]
[399435023,1766349070457,-1015.73878496,7.877e-05,2]
[399435024,1766349089928,-5000.0,7.798e-05,2]
[399435025,1766349093407,-537.01450187,7.877e-05,2]
[399435026,1766349095682,-156.80490251,7.877e-05,2]
[399435028,1766349097259,-313.90424489,7.877e-05,2]
[399435029,1766349100465,-426.0902851,7.877e-05,2]
[399435030,1766349102762,-251.30459129,7.877e-05,2]
[399435031,1766349104316,-226.03353956,7.877e-05,2]
[399435032,1766349112839,0.01,7.867e-05,2]
[399435033,1766349112864,4999.99,7.867e-05,2]
[399435050,1766349134112,20000.0,0.0003287,60]
[399435054,1766349135408,5000.0,7.867e-05,2]
[399435067,1766349144404,-2073.10914982,7.877e-05,2]
[399435068,1766349147048,895.25,7.81e-05,2]
[399435069,1766349151233,1025.23407678,7.877e-05,2]
[399435070,1766349159206,3933.30762358,7.877e-05,2]
[399435071,1766349159230,1066.69237642,7.877e-05,2]
[399435072,1766349167296,-252.88672977,7.95e-05,2]
[399435073,1766349169570,-247.11327023,7.95e-05,2]
[399435074,1766349169592,-37.52114387,7.95e-05,2]
[399435075,1766349172616,-154.05336445,7.95e-05,2]
[399435076,1766349175051,-347.8577275,7.95e-05,2]
[399435077,1766349175526,154.05336445,7.94e-05,2]
[399435078,1766349176748,6490.0,0.0003287,60]
[399435079,1766349176775,-109.02626944,7.95e-05,2]
[399435080,1766349176797,-391.58793724,7.95e-05,2]
[399435081,1766349179062,-108.41206276,7.95e-05,2]
[399435082,1766349179085,-118.25861354,7.95e-05,2]
[399435083,1766349184681,5000.0,7.94e-05,2]
[399435084,1766349198409,-187.66479215,7.949e-05,2]
[399435085,1766349200796,1075.14261048,7.94e-05,2]
[399435086,1766349201849,-112.33520785,7.949e-05,2]
[399435087,1766349201874,-132.93460669,7.949e-05,2]
[399435088,1766349204179,-156.09215701,7.949e-05,2]
[399435089,1766349204204,-117.10228743,7.95e-05,2]
[399435090,1766349206141,190.21460697,7.743e-05,2]
[399435091,1766349206400,-264.63909903,7.95e-05,2]
[399435092,1766349206425,-236.76731322,7.95e-05,2]
[399435093,1766349208525,5000.0,7.94e-05,2]
[399435094,1766349208621,627.25258945,7.8e-05,2]
[399435095,1766349209057,-157.28195818,7.95e-05,2]
[399435096,1766349210542,-105.9507286,7.95e-05,2]
[399435097,1766349210565,-500.0,7.95e-05,2]
[399435098,1766349210588,-31.82072116,7.95e-05,2]
[399435099,1766349213919,-468.17927884,7.95e-05,2]
[399435100,1766349213943,-267.73366305,7.95e-05,2]
[399435101,1766349215483,-232.26633695,7.95e-05,2]
[399435102,1766349215507,-19.52913966,7.95e-05,2]
[399435103,1766349217568,-322.31467178,7.95e-05,2]
[399435104,1766349218874,472.96076784,7.157e-05,2]
[399435105,1766349219637,-308.15618856,7.95e-05,2]
[399435106,1766349219660,-37.79044699,7.95e-05,2]
[399435107,1766349220692,851.32938211,7.221e-05,2]
[399435108,1766349222403,1513.47445708,7.285e-05,2]
[399435109,1766349222432,-172.81535219,7.95e-05,2]
[399435110,1766349224083,-289.39420082,7.95e-05,2]
[399435111,1766349224105,-61.24210985,7.95e-05,2]
[399435112,1766349225158,269.63558607,7.94e-05,2]
[399435113,1766349225179,4286.05819005,7.94e-05,2]
[399435114,1766349225776,-329.6796504,7.95e-05,2]
[399435115,1766349226363,890.7,7.834e-05,2]
[399435116,1766349227929,-109.07823975,7.95e-05,2]
[399435117,1766349227951,-91.95055881,7.95e-05,2]
[399435118,1766349229800,-408.04944119,7.95e-05,2]
[399435119,1766349229822,-112.22470053,7.95e-05,2]
[399435120,1766349231317,-318.12085498,7.95e-05,2]
[399435121,1766349242844,-275.56412896,7.87e-05,2]
[399435122,1766349245116,-286.37537507,7.87e-05,2]
[399435123,1766349248821,-199.02803357,7.87e-05,2]
[399435124,1766349250331,-273.02954409,7.87e-05,2]
[399435125,1766349252193,-298.31154285,7.87e-05,2]
[399435126,1766349253720,-315.81070845,7.87e-05,2]
[399435127,1766349272706,5000.0,7.86e-05,2]
[399435128,1766349273207,-242.37310353,7.87e-05,2]
[399435129,1766349276638,-230.78617093,7.87e-05,2]
[399435130,1766349280020,-386.9471591,7.87e-05,2]
[399435131,1766349281699,-255.26057794,7.87e-05,2]
[399435132,1766349282839,151.0,9e-07,2]
[399435133,1766349283865,151.0,9e-07,2]
[399435134,1766349286831,-1088.28,7.87e-05,2]
[399435135,1766349295760,440.59669062,7.86e-05,2]
[399435137,1766349308572,939.57,7.798e-05,2]
[399435138,1766349323384,397.55067979,7.21e-05,2]
[399435139,1766349325731,715.59122362,7.356e-05,2]
[399435140,1766349327405,1272.16217533,7.502e-05,2]
[399435141,1766349334364,932.53923064,7.85e-05,2]
[399435142,1766349334391,10000.01,7.85e-05,2]
[399435143,1766349334417,10000.01,7.85e-05,2]
[399435144,1766349364280,10002.5,0.0003287,60]
[399435145,1766349390251,-953.77,7.814e-05,2]
[399435146,1766349414896,-500.0,7.849e-05,2]
[399435147,1766349414933,-500.0,7.849e-05,2]
[399435148,1766349414972,-500.0,7.849e-05,2]